[Event "SVK-ch GM 2018"]
[Site "Banska Stiavnica"]
[Date "2018.07.11"]
[Round "5"]
[White "Nayhebaver, Martin"]
[Black "Petenyi, Tamas"]
[Result "1/2-1/2"]
[ECO "B11"]
[WhiteElo "2478"]
[BlackElo "2450"]
[Annotator "ChessBase"]
[PlyCount "68"]
[EventDate "2018.07.07"]
[EventType "tourn"]
[EventCountry "SVK"]
[SourceTitle "playchess.com"]
[Source "ChessBase"]
[SourceQuality "1"]
[TimeControl "40/5400+30:1800+30"]

1. e4 {[%emt 0:00:00]} c6 {[%emt 0:01:55]} 2. Nc3 {[%emt 0:00:12]} d5 {[%emt 0:00:37]} 3. Nf3 {[%emt 0:00:47]} Bg4 {[%emt 0:00:27]} 4. d4 {[%emt 0:00:47]} e6 {[%emt 0:02:17]} 5. h3 {[%emt 0:00:55]} Bh5 {[%emt 0:00:32]} 6. g4 {[%emt 0:01:54]} Bg6 {[%emt 0:00:05]} 7. exd5 {[%emt 0:00:09]} exd5 {[%emt 0:00:23]} 8. Qe2+ {[%emt 0:00:21]} Qe7 {[%emt 0:02:52]} 9. Be3 {[%emt 0:00:57]} Nd7 {[%emt 0:01:04]} 10. O-O-O {[%emt 0:02:30]} O-O-O {[%emt 0:05:21]} 11. Ne5 {[%emt 0:02:45]} Nb6 {[%emt 0:07:29]} 12. a3 {[%emt 0:11:55]} f6 {[%emt 0:03:13]} 13. Nxg6 {[%emt 0:00:51]} hxg6 {[%emt 0:00:01]} 14. Qd2 {[%emt 0:03:47]} Qf7 {[%emt 0:01:30]} 15. Bd3 {[%emt 0:01:54]} Bd6 {[%emt 0:01:19]} 16. Ne2 {[%emt 0:02:33]} Ne7 {[%emt 0:07:12]} 17. h4 {[%emt 0:05:04]} Nc4 {[%emt 0:03:56]} 18. Bxc4 {[%emt 0:02:08]} dxc4 {[%emt 0:00:02]} 19. Qa5 {[%emt 0:04:55]} a6 {[%emt 0:01:26]} 20. Qa4 {[%emt 0:18:01]} Qe6 {[%emt 0:03:30]} 21. Rdg1 {[%emt 0:05:51]} Rde8 {[%emt 0:03:01]} 22. c3 {[%emt 0:14:30]} Nd5 {[%emt 0:07:11]} 23. Qxc4 {[%emt 0:00:31]} Nxe3 {[%emt 0:00:09]} 24. Qxe6+ {[%emt 0:00:04]} Rxe6 {[%emt 0:00:03]} 25. fxe3 {[%emt 0:00:05]} Rxe3 {[%emt 0:00:04]} 26. Kd2 {[%emt 0:00:19]} Rhe8 {[%emt 0:03:10]} 27. Rg2 {[%emt 0:00:20]} Rf3 {[%emt 0:00:36]} 28. h5 {[%emt 0:04:12]} g5 {[%emt 0:03:37]} 29. h6 {[%emt 0:01:50]} gxh6 {[%emt 0:00:29]} 30. Rxh6 {[%emt 0:00:07]} Re7 {[%emt 0:02:01]} 31. Ng1 {[%emt 0:02:07]} Rf1 {[%emt 0:05:34]} 32. Nh3 {[%emt 0:03:10]} Kc7 {[%emt 0:02:59]} 33. Re2 {[%emt 0:03:37]} Rxe2+ {[%emt 0:10:45]} 34. Kxe2 {[%emt 0:00:05]} Rb1 {[%emt 0:00:08]} 1/2-1/2

[Event "SVK-ch GM 2018"]
[Site "Banska Stiavnica"]
[Date "2018.07.11"]
[Round "5"]
[White "Pechac, Jergus"]
[Black "Petrik, Tomas"]
[Result "0-1"]
[ECO "A06"]
[WhiteElo "2435"]
[BlackElo "2470"]
[Annotator "ChessBase"]
[PlyCount "68"]
[EventDate "2018.07.07"]
[EventType "tourn"]
[EventCountry "SVK"]
[SourceTitle "playchess.com"]
[Source "ChessBase"]
[SourceQuality "1"]
[TimeControl "40/5400+30:1800+30"]

1. g3 {[%emt 0:00:00]} d5 {[%emt 0:01:55]} 2. Nf3 {[%emt 0:00:00]} c6 {[%emt 0:00:14]} 3. c4 {[%emt 0:00:51]} Bg4 {[%emt 0:13:07]} 4. Bg2 {[%emt 0:05:38]} e6 {[%emt 0:00:40]} 5. cxd5 {[%emt 0:01:09]} Bxf3 {[%emt 0:13:33]} 6. Bxf3 {[%emt 0:00:07]} cxd5 {[%emt 0:00:06]} 7. O-O {[%emt 0:02:17]} Nc6 {[%emt 0:00:29]} 8. d3 {[%emt 0:02:07]} Nf6 {[%emt 0:07:24]} 9. e4 {[%emt 0:02:07]} dxe4 {[%emt 0:12:23]} 10. dxe4 {[%emt 0:00:08]} Bd6 {[%emt 0:01:13]} 11. Nd2 {[%emt 0:12:03]} Ne5 {[%emt 0:12:48]} 12. Qa4+ {[%emt 0:02:32]} Nfd7 {[%emt 0:05:33]} 13. Be2 {[%emt 0:03:19]} O-O {[%emt 0:00:20]} 14. Nb3 {[%emt 0:01:41]} Nc5 {[%emt 0:05:53]} 15. Nxc5 {[%emt 0:03:39]} Bxc5 {[%emt 0:00:05]} 16. Kg2 {[%emt 0:02:32]} Qb6 {[%emt 0:01:57]} 17. b4 {[%emt 0:03:10]} Bd4 {[%emt 0:04:11]} 18. Rb1 {[%emt 0:00:07]} Rac8 {[%emt 0:00:21]} 19. b5 {[%emt 0:01:36]} Nd7 {[%emt 0:06:55]} 20. Ba3 {[%emt 0:10:03]} Rfd8 {[%emt 0:01:47]} 21. Be7 {[%emt 0:15:19]} Re8 {[%emt 0:00:05]} 22. Ba3 {[%emt 0:00:11]} Red8 {[%emt 0:00:11]} 23. Be7 {[%emt 0:00:10]} Re8 {[%emt 0:00:01]} 24. Ba3 {[%emt 0:00:06]} e5 {[%emt 0:06:13]} 25. Bg4 {[%emt 0:01:32]} Nc5 {[%emt 0:00:05]} 26. Qc4 {[%emt 0:01:47]} Rc7 {[%emt 0:00:20]} 27. Qd5 {[%emt 0:02:48]} Qg6 {[%emt 0:02:06]} 28. Bf5 {[%emt 0:00:21]} Qf6 {[%emt 0:00:03]} 29. f4 {[%emt 0:03:10]} Rd8 {[%emt 0:01:39]} 30. b6 {[%emt 0:00:27]} axb6 {[%emt 0:00:30]} 31. Rxb6 {[%emt 0:07:35]} Rxd5 {[%emt 0:00:29]} 32. Rxf6 {[%emt 0:00:04]} Rd8 {[%emt 0:00:11]} 33. Rb6 {[%emt 0:00:07]} g6 {[%emt 0:01:07]} 34. Bg4 {[%emt 0:01:31]} Nxe4 {[%emt 0:00:04]} 0-1

[Event "SVK-ch GM 2018"]
[Site "Banska Stiavnica"]
[Date "2018.07.11"]
[Round "5"]
[White "Manik, Mikulas"]
[Black "Jurcik, Marian"]
[Result "1/2-1/2"]
[ECO "C67"]
[WhiteElo "2400"]
[BlackElo "2445"]
[Annotator "NA RC"]
[PlyCount "61"]
[EventDate "2018.07.07"]
[EventType "tourn"]
[EventCountry "SVK"]
[SourceTitle "playchess.com"]
[Source "ChessBase"]
[SourceQuality "1"]
[TimeControl "40/5400+30:1800+30"]

1. e4 {[%emt 0:02:38]} e5 {[%emt 0:00:01]} 2. Nf3 {[%emt 0:00:07]} Nc6 {[%emt 0:00:36]} 3. Bb5 {[%emt 0:00:59]} Nf6 {[%emt 0:01:58]} 4. O-O {[%emt 0:01:29]} Nxe4 {[%emt 0:01:12]} 5. Re1 {[%emt 0:01:01]} Nd6 {[%emt 0:01:51]} 6. Nxe5 {[%emt 0:00:13]} Be7 {[%emt 0:00:34]} 7. Bf1 {[%emt 0:00:10]} Nf5 {[%emt 0:03:24]} 8. c3 {[%emt 0:02:57]} Nxe5 {[%emt 0:03:13]} 9. Rxe5 {[%emt 0:00:13]} d6 {[%emt 0:00:26]} 10. Re1 {[%emt 0:00:10]} c5 {[%emt 0:09:13]} 11. d4 {[%emt 0:08:13]} cxd4 {[%emt 0:01:46] LiveBook: 4 Partien} 12. Bg5 $11 {[%emt 0:00:15]} dxc3 {[%emt 0:04:22]} 13. Bb5+ {[%emt 0:11:44]} Bd7 {[%emt 0:01:07]} 14. Nxc3 {[%emt 0:00:09]} O-O {[%emt 0:03:00]} 15. Bxe7 {[%emt 0:00:46]} Nxe7 {[%emt 0:00:08]} 16. Qxd6 {[%emt 0:00:11]} Bxb5 {[%emt 0:01:30]} 17. Nxb5 {[%emt 0:00:09]} Nc6 {[%emt 0:01:13]} 18. Qxd8 {[%emt 0:00:46]} Raxd8 {[%emt 0:00:38]} 19. Rad1 {[%emt 0:00:07]} a6 {[%emt 0:02:29]} 20. Nc3 {[%emt 0:00:17]} Rxd1 {[%emt 0:00:47]} 21. Rxd1 {[%emt 0:00:06]} Rd8 {[%emt 0:00:05]} 22. Rxd8+ {[%emt 0:00:38]} Nxd8 {[%emt 0:00:06]} 23. f4 {[%emt 0:00:10]} f5 {[%emt 0:00:51]} 24. Kf2 {[%emt 0:00:10]} Kf7 {[%emt 0:00:14]} 25. Ke3 {[%emt 0:00:20]} Ke6 {[%emt 0:00:40]} 26. b4 {[%emt 0:00:12]} Nc6 {[%emt 0:00:55]} 27. a3 {[%emt 0:00:08]} b5 {[%emt 0:00:49]} 28. g3 {[%emt 0:00:09]} Kd6 {[%emt 0:00:42]} 29. Kd3 {[%emt 0:00:05]} g6 {[%emt 0:01:15]} 30. Ke3 {[%emt 0:00:09]} Ne7 {[%emt 0:00:33]} 31. Kd4 {[%emt 0:00:04]} 1/2-1/2

[Event "SVK-ch GM 2018"]
[Site "Banska Stiavnica"]
[Date "2018.07.12"]
[Round "6"]
[White "Gazik, Viktor"]
[Black "Nayhebaver, Martin"]
[Result "1-0"]
[ECO "A15"]
[WhiteElo "2490"]
[BlackElo "2478"]
[Annotator "RC"]
[PlyCount "85"]
[EventDate "2018.07.07"]
[EventType "tourn"]
[EventCountry "SVK"]
[SourceTitle "playchess.com"]
[Source "ChessBase"]
[SourceQuality "1"]
[TimeControl "40/5400+30:1800+30"]

1. c4 {[%emt 0:00:00]} Nf6 {[%emt 0:00:24]} 2. g3 {[%emt 0:00:00]} e6 {[%emt 0:00:27]} 3. Nf3 {[%emt 0:00:24]} b6 {[%emt 0:01:14]} 4. Bg2 {[%emt 0:00:17]} Bb7 {[%emt 0:00:06]} 5. O-O {[%emt 0:00:21]} c5 {[%emt 0:01:58]} 6. b3 {[%emt 0:02:31]} Be7 {[%emt 0:00:38]} 7. Bb2 {[%emt 0:00:06]} O-O {[%emt 0:00:42]} 8. d3 {[%emt 0:01:20]} d5 {[%emt 0:01:45]} 9. e3 {[%emt 0:00:52]} Nc6 {[%emt 0:01:23]} 10. Qe2 {[%emt 0:00:30]} Qc7 {[%emt 0:03:29]} 11. Nc3 {[%emt 0:03:09]} Rad8 {[%emt 0:07:00]} 12. Rfd1 {[%emt 0:02:29]} Rfe8 {[%emt 0:04:21]} 13. Rac1 {[%emt 0:04:57]} Qb8 {[%emt 0:01:25]} 14. Nh4 {[%emt 0:08:42]} d4 {[%emt 0:03:22]} 15. Nb1 {[%emt 0:02:20]} dxe3 {[%emt 0:01:37]} 16. fxe3 {[%emt 0:00:19]} Nb4 {[%emt 0:00:53]} 17. Nc3 {[%emt 0:12:08]} Bxg2 {[%emt 0:02:19]} 18. Nxg2 {[%emt 0:00:09]} Rd7 {[%emt 0:01:22]} 19. Rd2 {[%emt 0:02:23]} Red8 {[%emt 0:01:37]} 20. Rcd1 {[%emt 0:00:04]} Qb7 {[%emt 0:02:32]} 21. g4 {[%emt 0:14:12]} h6 {[%emt 0:03:28]} 22. h4 {[%emt 0:01:50]} Nh7 {[%emt 0:05:11]} 23. a3 {[%emt 0:00:37]} Nc6 {[%emt 0:00:36]} 24. Ne4 {[%emt 0:00:07]} Qc7 {[%emt 0:13:22]} 25. d4 {[%emt 0:18:48]} f5 {[%emt 0:09:32]} 26. gxf5 {[%emt 0:08:12]} exf5 {[%emt 0:00:16]} 27. Nc3 {[%emt 0:00:01]} Qg3 {[%emt 0:01:07]} 28. dxc5 {[%emt 0:05:45]} Rxd2 {[%emt 0:07:08]} 29. Rxd2 {[%emt 0:00:02]} bxc5 {[%emt 0:03:52]} 30. Rxd8+ {[%emt 0:01:32]} Bxd8 {[%emt 0:01:06]} 31. Qd2 {[%emt 0:03:54]} Nf6 {[%emt 0:13:57]} 32. Ne2 {[%emt 0:00:17]} Qf3 {[%emt 0:00:13]} 33. Nef4 {[%emt 0:00:13]} Kh7 {[%emt 0:02:03]} 34. Qd6 {[%emt 0:03:51]} Qe4 {[%emt 0:03:27]} 35. Bc3 {[%emt 0:03:14]} Be7 {[%emt 0:01:54]} 36. Qc7 {[%emt 0:01:24]} Ng4 {[%emt 0:00:30]} 37. Nd5 {[%emt 0:00:25]} Qb1+ {[%emt 0:01:10]} 38. Ne1 {[%emt 0:00:02]} Nce5 {[%emt 0:00:53]} 39. Qxe7 {[%emt 0:00:42]} Nf3+ {[%emt 0:00:37]} 40. Kf1 {[%emt 0:00:44]} Ngh2+ {[%emt 0:00:33]} 41. Kf2 {[%emt 0:01:13]} Qa2+ {[%emt 0:06:03]} 42. Kg3 {[%emt 0:00:08]} Nf1+ {[%emt 0:01:38]} 43. Kf4 {[%emt 0:02:57]} 1-0

[Event "SVK-ch GM 2018"]
[Site "Banska Stiavnica"]
[Date "2018.07.12"]
[Round "6"]
[White "Petenyi, Tamas"]
[Black "Pechac, Jergus"]
[Result "1-0"]
[ECO "B20"]
[WhiteElo "2450"]
[BlackElo "2435"]
[Annotator "RC"]
[PlyCount "37"]
[EventDate "2018.07.07"]
[EventType "tourn"]
[EventCountry "SVK"]
[SourceTitle "playchess.com"]
[Source "ChessBase"]
[SourceQuality "1"]
[TimeControl "40/5400+30:1800+30"]

1. e4 {[%emt 0:00:36]} c5 {[%emt 0:00:00]} 2. b3 {[%emt 0:00:21]} b6 {[%emt 0:00:33]} 3. Bb2 {[%emt 0:00:31]} Bb7 {[%emt 0:00:06]} 4. Nc3 {[%emt 0:00:17]} d6 {[%emt 0:01:13]} 5. d4 {[%emt 0:01:08]} Nd7 {[%emt 0:00:49]} 6. Nf3 {[%emt 0:02:08]} Ngf6 {[%emt 0:01:55]} 7. dxc5 {[%emt 0:09:23]} bxc5 {[%emt 0:02:17]} 8. Bb5 {[%emt 0:04:03]} Nxe4 {[%emt 0:05:08]} 9. Nxe4 {[%emt 0:05:15]} Bxe4 {[%emt 0:00:05]} 10. O-O {[%emt 0:00:08]} Rb8 {[%emt 0:01:46]} 11. Ba4 {[%emt 0:08:12]} Qc7 {[%emt 0:03:19]} 12. Ne5 {[%emt 0:03:55]} Bf5 {[%emt 0:03:15]} 13. Qf3 {[%emt 0:01:18]} f6 {[%emt 0:01:23]} 14. Qxf5 {[%emt 0:03:49]} fxe5 {[%emt 0:00:06]} 15. Bxe5 {[%emt 0:00:44]} Kd8 {[%emt 0:00:16]} 16. Rfe1 {[%emt 0:13:54]} Nxe5 {[%emt 0:02:07]} 17. Rxe5 {[%emt 0:04:39]} g6 {[%emt 0:01:04]} 18. Qf6 {[%emt 0:03:55]} exf6 {[%emt 0:00:15]} 19. Re8# {[%emt 0:00:02]} 1-0

[Event "SVK-ch GM 2018"]
[Site "Banska Stiavnica"]
[Date "2018.07.12"]
[Round "6"]
[White "Jurcik, Marian"]
[Black "Zvarik, Martin"]
[Result "0-1"]
[ECO "E38"]
[WhiteElo "2445"]
[BlackElo "2280"]
[Annotator "NA"]
[PlyCount "84"]
[EventDate "2018.07.07"]
[EventType "tourn"]
[EventCountry "SVK"]
[SourceTitle "playchess.com"]
[Source "ChessBase"]
[SourceQuality "1"]
[TimeControl "40/5400+30:1800+30"]

1. d4 {[%emt 0:00:52]} Nf6 {[%emt 0:08:00]} 2. c4 {[%emt 0:00:52]} e6 {[%emt 0:00:13]} 3. Nc3 {[%emt 0:00:20]} Bb4 {[%emt 0:00:31]} 4. Qc2 {[%emt 0:00:20]} c5 {[%emt 0:00:41]} 5. dxc5 {[%emt 0:00:40]} Na6 {[%emt 0:00:51]} 6. a3 {[%emt 0:06:01]} Bxc5 {[%emt 0:00:06]} 7. b4 {[%emt 0:02:42]} Be7 {[%emt 0:00:42]} 8. e4 {[%emt 0:02:12]} d6 {[%emt 0:01:07]} 9. Bd3 {[%emt 0:02:09]} Nc7 {[%emt 0:02:32]} 10. f4 {[%emt 0:02:57]} Bd7 {[%emt 0:12:09]} 11. Nf3 {[%emt 0:02:49]} Rc8 {[%emt 0:06:58]} 12. Qe2 {[%emt 0:04:44]} b5 {[%emt 0:02:25]} 13. cxb5 {[%emt 0:01:53]} d5 {[%emt 0:00:10]} 14. e5 {[%emt 0:15:04]} Ne4 {[%emt 0:00:05]} 15. Bxe4 {[%emt 0:03:05]} dxe4 {[%emt 0:00:03]} 16. Nd4 {[%emt 0:00:07]} Nd5 {[%emt 0:07:04]} 17. Nxd5 {[%emt 0:01:40]} exd5 {[%emt 0:01:43]} 18. Be3 {[%emt 0:04:00]} Rc3 {[%emt 0:06:55]} 19. O-O {[%emt 0:02:01]} O-O {[%emt 0:07:28]} 20. Rfc1 {[%emt 0:04:15]} Rd3 {[%emt 0:00:15]} 21. Bf2 {[%emt 0:07:57]} Qe8 {[%emt 0:01:52]} 22. Nc6 {[%emt 0:00:44]} Bd8 {[%emt 0:04:01]} 23. Bxa7 {[%emt 0:05:10]} g5 {[%emt 0:00:05]} 24. Nxd8 {[%emt 0:21:18]} Qxd8 {[%emt 0:01:01]} 25. fxg5 {[%emt 0:00:23]} Qxg5 {[%emt 0:00:42]} 26. a4 {[%emt 0:03:04]} Kh8 {[%emt 0:03:15]} 27. Qf2 {[%emt 0:02:38]} Rf3 {[%emt 0:00:51]} 28. Qb2 {[%emt 0:01:00]} Be6 {[%emt 0:01:20]} 29. Kh1 {[%emt 0:01:04]} Rd3 {[%emt 0:01:10]} 30. Qf2 {[%emt 0:00:48]} Rg8 {[%emt 0:01:52]} 31. Qf6+ {[%emt 0:00:43]} Qxf6 {[%emt 0:00:06]} 32. exf6 {[%emt 0:00:03]} d4 {[%emt 0:00:26]} 33. Rd1 {[%emt 0:01:54]} Bb3 {[%emt 0:03:40]} 34. Rg1 {[%emt 0:00:55]} e3 {[%emt 0:00:24]} 35. a5 {[%emt 0:00:30]} Bd5 {[%emt 0:00:40]} 36. Rac1 {[%emt 0:00:34]} e2 {[%emt 0:00:20]} 37. Rce1 {[%emt 0:00:25]} Rxg2 {[%emt 0:00:38]} 38. Rxg2 {[%emt 0:00:25]} Rd1 {[%emt 0:00:06]} 39. Kg1 {[%emt 0:00:33]} Rxe1+ {[%emt 0:01:41]} 40. Kf2 {[%emt 0:00:01]} Rb1 {[%emt 0:00:45]} 41. Kxe2 {[%emt 0:30:24]} Bxg2 {[%emt 0:30:27]} 42. b6 {[%emt 0:00:00]} Bb7 {[%emt 0:00:00]} 0-1

[Event "SVK-ch GM 2018"]
[Site "Banska Stiavnica"]
[Date "2018.07.12"]
[Round "6"]
[White "Mazur, Stefan"]
[Black "Petrik, Tomas"]
[Result "1/2-1/2"]
[ECO "B03"]
[WhiteElo "2425"]
[BlackElo "2470"]
[Annotator "ChessBase"]
[PlyCount "108"]
[EventDate "2018.07.07"]
[EventType "tourn"]
[EventCountry "SVK"]
[SourceTitle "playchess.com"]
[Source "ChessBase"]
[SourceQuality "1"]
[TimeControl "40/5400+30:1800+30"]

1. e4 {[%emt 0:00:09]} Nf6 {[%emt 0:07:32]} 2. e5 {[%emt 0:00:47]} Nd5 {[%emt 0:00:09]} 3. d4 {[%emt 0:00:19]} d6 {[%emt 0:00:08]} 4. c4 {[%emt 0:00:31]} Nb6 {[%emt 0:00:07]} 5. exd6 {[%emt 0:00:22]} exd6 {[%emt 0:01:07]} 6. h3 {[%emt 0:00:56]} Be7 {[%emt 0:07:27]} 7. Nf3 {[%emt 0:00:13]} Nc6 {[%emt 0:07:42]} 8. Nc3 {[%emt 0:00:44]} Bf6 {[%emt 0:06:26]} 9. Be3 {[%emt 0:18:05]} O-O {[%emt 0:02:34]} 10. b3 {[%emt 0:00:42]} a5 {[%emt 0:13:57]} 11. Rc1 {[%emt 0:01:35]} Bf5 {[%emt 0:03:47]} 12. Be2 {[%emt 0:07:18]} a4 {[%emt 0:05:00]} 13. O-O {[%emt 0:01:23]} Bg6 {[%emt 0:23:16]} 14. Qd2 {[%emt 0:05:22]} axb3 {[%emt 0:01:37]} 15. axb3 {[%emt 0:00:09]} Re8 {[%emt 0:00:08]} 16. Rfd1 {[%emt 0:18:33]} Qd7 {[%emt 0:07:31]} 17. c5 {[%emt 0:10:14]} Nc8 {[%emt 0:00:12]} 18. d5 {[%emt 0:02:14]} Ne5 {[%emt 0:01:00]} 19. c6 {[%emt 0:06:11]} bxc6 {[%emt 0:01:30]} 20. dxc6 {[%emt 0:00:14]} Nxc6 {[%emt 0:06:36]} 21. Bb5 {[%emt 0:04:13]} Rb8 {[%emt 0:00:16]} 22. Ba4 {[%emt 0:01:27]} Nb6 {[%emt 0:00:54]} 23. Bxb6 {[%emt 0:01:56]} cxb6 {[%emt 0:00:07]} 24. Bb5 {[%emt 0:05:44]} Rec8 {[%emt 0:01:52]} 25. Nd5 {[%emt 0:00:27]} Qb7 {[%emt 0:00:52]} 26. Nxf6+ {[%emt 0:04:11]} gxf6 {[%emt 0:00:02]} 27. Qxd6 {[%emt 0:00:12]} Na7 {[%emt 0:00:22]} 28. Bd7 {[%emt 0:03:26]} Rxc1 {[%emt 0:01:11]} 29. Rxc1 {[%emt 0:00:02]} Rd8 {[%emt 0:00:07]} 30. Rc7 {[%emt 0:00:10]} Qb8 {[%emt 0:00:16]} 31. Nd4 {[%emt 0:00:47]} Nc8 {[%emt 0:00:32]} 32. Qc6 {[%emt 0:04:50]} Ne7 {[%emt 0:00:03]} 33. Qb7 {[%emt 0:01:00]} Qxb7 {[%emt 0:01:21]} 34. Rxb7 {[%emt 0:00:02]} Be4 {[%emt 0:00:08]} 35. Ra7 {[%emt 0:00:15]} Ng6 {[%emt 0:00:59]} 36. Nc6 {[%emt 0:01:27]} Rxd7 {[%emt 0:00:39]} 37. Rxd7 {[%emt 0:00:10]} Bxc6 {[%emt 0:00:02]} 38. Rd6 {[%emt 0:01:51]} Ne7 {[%emt 0:00:03]} 39. Rxf6 {[%emt 0:00:04]} b5 {[%emt 0:00:44]} 40. f3 {[%emt 0:00:34]} Bd5 {[%emt 0:01:11]} 41. Rb6 {[%emt 0:00:57]} Bxb3 {[%emt 0:25:10]} 42. Rxb5 {[%emt 0:00:32]} Be6 {[%emt 0:02:00]} 43. Kf2 {[%emt 0:00:08]} Kg7 {[%emt 0:00:13]} 44. g4 {[%emt 0:00:32]} h6 {[%emt 0:03:00]} 45. Kg3 {[%emt 0:00:25]} f6 {[%emt 0:00:49]} 46. Rb7 {[%emt 0:02:40]} Kf8 {[%emt 0:00:03]} 47. Ra7 {[%emt 0:00:19]} Bf7 {[%emt 0:00:44]} 48. f4 {[%emt 0:01:28]} h5 {[%emt 0:00:56]} 49. f5 {[%emt 0:05:43]} hxg4 {[%emt 0:00:04]} 50. hxg4 {[%emt 0:00:05]} Nd5 {[%emt 0:00:37]} 51. Ra8+ {[%emt 0:00:17]} Kg7 {[%emt 0:00:13]} 52. Ra7 {[%emt 0:00:35]} Kf8 {[%emt 0:01:00]} 53. Ra8+ {[%emt 0:00:10]} Kg7 {[%emt 0:00:56]} 54. Ra7 {[%emt 0:00:05]} Kf8 {[%emt 0:00:55]} 1/2-1/2

[Event "SVK-ch GM 2018"]
[Site "Banska Stiavnica"]
[Date "2018.07.13"]
[Round "7"]
[White "Nayhebaver, Martin"]
[Black "Jurcik, Marian"]
[Result "0-1"]
[ECO "B18"]
[WhiteElo "2478"]
[BlackElo "2445"]
[Annotator "RC"]
[PlyCount "104"]
[EventDate "2018.07.07"]
[EventType "tourn"]
[EventCountry "SVK"]
[SourceTitle "playchess.com"]
[Source "ChessBase"]
[SourceQuality "1"]
[TimeControl "40/5400+30:1800+30"]

1. e4 {[%emt 0:00:00]} c6 {[%emt 0:00:28]} 2. d4 {[%emt 0:03:38]} d5 {[%emt 0:00:32]} 3. Nc3 {[%emt 0:01:22]} dxe4 {[%emt 0:01:15]} 4. Nxe4 {[%emt 0:00:08]} Bf5 {[%emt 0:01:41]} 5. Ng3 {[%emt 0:00:50]} Bg6 {[%emt 0:00:10]} 6. N1e2 {[%emt 0:02:27]} Nf6 {[%emt 0:06:16]} 7. Nf4 {[%emt 0:06:30]} e5 {[%emt 0:01:55]} 8. Nxg6 {[%emt 0:03:40]} hxg6 {[%emt 0:00:07]} 9. dxe5 {[%emt 0:04:17]} Qa5+ {[%emt 0:04:16]} 10. Bd2 {[%emt 0:03:51]} Qxe5+ {[%emt 0:00:46]} 11. Qe2 {[%emt 0:00:26]} Qxe2+ {[%emt 0:00:24]} 12. Bxe2 {[%emt 0:00:32]} Nbd7 {[%emt 0:04:01]} 13. O-O-O {[%emt 0:00:58]} Bc5 {[%emt 0:01:35]} 14. f4 {[%emt 0:02:19]} O-O-O {[%emt 0:01:47]} 15. Kb1 {[%emt 0:07:38]} Nb6 {[%emt 0:07:36]} 16. c4 {[%emt 0:06:45]} Bf2 {[%emt 0:10:19]} 17. Kc2 {[%emt 0:17:10]} Rhe8 {[%emt 0:10:19]} 18. Bd3 {[%emt 0:01:22]} Na4 {[%emt 0:01:16]} 19. Bc1 {[%emt 0:14:00]} Bxg3 {[%emt 0:13:14]} 20. hxg3 {[%emt 0:00:08]} Nc5 {[%emt 0:00:02]} 21. Rhg1 {[%emt 0:10:52]} a6 {[%emt 0:17:58]} 22. Rd2 {[%emt 0:04:48]} Nxd3 {[%emt 0:07:46]} 23. Rxd3 {[%emt 0:00:05]} Re2+ {[%emt 0:00:10]} 24. Kd1 {[%emt 0:00:10]} Rf2 {[%emt 0:03:22]} 25. Rxd8+ {[%emt 0:01:51]} Kxd8 {[%emt 0:00:01]} 26. a3 {[%emt 0:01:48]} Kd7 {[%emt 0:02:12]} 27. a4 {[%emt 0:02:08]} Nh5 {[%emt 0:01:23]} 28. g4 {[%emt 0:03:36]} Nxf4 {[%emt 0:00:26]} 29. Be3 {[%emt 0:00:01]} Rxg2 {[%emt 0:00:10]} 30. Rf1 {[%emt 0:00:06]} g5 {[%emt 0:00:31]} 31. Bxf4 {[%emt 0:00:03]} gxf4 {[%emt 0:00:05]} 32. Rxf4 {[%emt 0:00:02]} f6 {[%emt 0:00:17]} 33. Rd4+ {[%emt 0:01:10]} Kc8 {[%emt 0:02:30]} 34. Kc1 {[%emt 0:01:43]} a5 {[%emt 0:00:43]} 35. b3 {[%emt 0:00:34]} Kc7 {[%emt 0:00:12]} 36. c5 {[%emt 0:00:29]} Re2 {[%emt 0:00:25]} 37. Kd1 {[%emt 0:00:28]} Re5 {[%emt 0:01:14]} 38. Rc4 {[%emt 0:00:02]} Kd7 {[%emt 0:00:51]} 39. b4 {[%emt 0:00:16]} axb4 {[%emt 0:00:28]} 40. Rxb4 {[%emt 0:00:01]} Kc7 {[%emt 0:00:16]} 41. Rc4 {[%emt 0:30:07]} Re7 {[%emt 0:01:46]} 42. Rb4 {[%emt 0:00:00]} g5 {[%emt 0:07:55]} 43. Kd2 {[%emt 0:00:00]} Re5 {[%emt 0:02:14]} 44. Rc4 {[%emt 0:00:00]} Kb8 {[%emt 0:02:16]} 45. Kd3 {[%emt 0:00:00]} f5 {[%emt 0:03:24]} 46. gxf5 {[%emt 0:00:00]} Rxf5 {[%emt 0:00:06]} 47. Rc1 {[%emt 0:00:00]} Rf3+ {[%emt 0:01:46]} 48. Kc4 {[%emt 0:00:00]} Rf4+ {[%emt 0:02:53]} 49. Kb3 {[%emt 0:00:00]} Rf5 {[%emt 0:00:47]} 50. Kb4 {[%emt 0:00:00]} g4 {[%emt 0:01:02]} 51. Rh1 {[%emt 0:00:00]} Rg5 {[%emt 0:01:39]} 52. Ka5 {[%emt 0:00:00]} Ka7 {[%emt 0:02:12]} 0-1